fUSD/lending_fUSD_20240322
["ID","MTS","AMOUNT","RATE_DAILY","PERIOD"]
[320029677,1711087835653,-500.0,0.00019178,2]
[320029678,1711087835663,-249.988533,0.00019178,2]
[320029679,1711087835672,-72.62341768,0.00019178,2]
[320029680,1711087835684,-267.95,0.00019178,2]
[320029681,1711087835709,-159.42658232,0.00019178,2]
[320029682,1711087835719,-249.988533,0.00019178,2]
[320029683,1711087835729,-141.21239218,0.00019178,2]
[320029684,1711087836024,263.83840258,0.00012479,2]
[320029685,1711087836336,861.78243614,0.00012479,2]
[320029697,1711087837880,-358.78760782,0.00019178,2]
[320029700,1711087837890,-249.988533,0.00019178,2]
[320029701,1711087837899,-500.0,0.00019178,2]
[320029703,1711087837910,-249.988533,0.00019178,2]
[320029706,1711087837920,-249.988533,0.00019178,2]
[320029708,1711087837929,-983.756572,0.00019178,2]
[320029709,1711087837938,-71.7934092,0.00019178,2]
[320029712,1711087837950,-429.87136164,0.00019178,2]
[320029714,1711087837966,-482.09180116,0.00019178,2]
[320029716,1711087837975,-500.0,0.00019178,2]
[320029718,1711087837985,-35.72175394,0.00019178,2]
[320029726,1711087838052,-948.03481806,0.00019178,2]
[320029727,1711087838062,-249.988533,0.00019178,2]
[320029728,1711087838071,-983.756572,0.00019178,2]
[320029729,1711087838081,-249.988533,0.00019178,2]
[320029730,1711087838091,-983.756572,0.00019178,2]
[320029731,1711087838101,-249.988533,0.00019178,2]
[320029732,1711087838110,-500.0,0.00019178,2]
[320029733,1711087838119,-249.988533,0.00019178,2]
[320029734,1711087838130,-983.756572,0.00019178,2]
[320029735,1711087838139,-500.0,0.00019178,2]
[320029736,1711087838149,-249.988533,0.00019178,2]
[320029737,1711087838159,-500.0,0.00019178,2]
[320029738,1711087838169,-249.988533,0.00019178,2]
[320029739,1711087838179,-500.0,0.00019178,2]
[320029740,1711087838189,-238.667314,0.00019178,2]
[320029741,1711087838198,-500.0,0.00019178,2]
[320029742,1711087838208,-238.667314,0.00019178,2]
[320029743,1711087838217,-983.756572,0.00019178,2]
[320029744,1711087838226,-238.667314,0.00019178,2]
[320029745,1711087838236,-983.756572,0.00019178,2]
[320029746,1711087838245,-238.667314,0.00019178,2]
[320029747,1711087838254,-983.756572,0.00019178,2]
[320029748,1711087838264,-238.667314,0.00019178,2]
[320029749,1711087838276,-238.667314,0.00019178,2]
[320029750,1711087838285,-983.756572,0.00019178,2]
[320029751,1711087838295,-983.756572,0.00019178,2]
[320029752,1711087838303,-983.756572,0.00019178,2]
[320029753,1711087838313,-238.667314,0.00019178,2]
[320029754,1711087838322,-238.667314,0.00019178,2]
[320029755,1711087838331,-238.667314,0.00019178,2]
[320029756,1711087838340,-238.667314,0.00019178,2]
[320029757,1711087838351,-238.667314,0.00019178,2]
[320029758,1711087838360,-238.667314,0.00019178,2]
[320029759,1711087838370,-189.943775,0.00019178,2]
[320029760,1711087838380,-164.781035,0.00019178,2]
[320029761,1711087838390,-164.781035,0.00019178,2]
[320029762,1711087838404,-164.781035,0.00019178,2]
[320029763,1711087838413,-164.781035,0.00019178,2]
[320029764,1711087838423,-164.781035,0.00019178,2]
[320029765,1711087838433,-164.781035,0.00019178,2]
[320029766,1711087838443,-164.781035,0.00019178,2]
[320029767,1711087838452,-164.781035,0.00019178,2]
[320029768,1711087838462,-164.781035,0.00019178,2]
[320029769,1711087838471,-164.781035,0.00019178,2]
[320029770,1711087838483,-164.781035,0.00019178,2]
[320029771,1711087838493,-164.781035,0.00019178,2]
[320029772,1711087838502,-220.401656,0.00019178,2]
[320029773,1711087838511,-220.401656,0.00019178,2]
[320029774,1711087838523,-220.401656,0.00019178,2]
[320029775,1711087838532,-220.401656,0.00019178,2]
[320029776,1711087838541,-220.401656,0.00019178,2]
[320029777,1711087838549,-220.401656,0.00019178,2]
[320029778,1711087838559,-220.401656,0.00019178,2]
[320029779,1711087838569,-220.401656,0.00019178,2]
[320029780,1711087838578,-220.401656,0.00019178,2]
[320029781,1711087838587,-220.401656,0.00019178,2]
[320029782,1711087838596,-220.401656,0.00019178,2]
[320029783,1711087838606,-220.401656,0.00019178,2]
[320029784,1711087838615,-242.891502,0.00019178,2]
[320029785,1711087838624,-242.891502,0.00019178,2]
[320029786,1711087838634,-242.891502,0.00019178,2]
[320029787,1711087838644,-242.891502,0.00019178,2]
[320029788,1711087838653,-242.891502,0.00019178,2]
[320029789,1711087838663,-242.891502,0.00019178,2]
[320029790,1711087838672,-242.891502,0.00019178,2]
[320029791,1711087838682,-242.891502,0.00019178,2]
[320029792,1711087838691,-242.891502,0.00019178,2]
[320029793,1711087838701,-242.891502,0.00019178,2]
[320029794,1711087838710,-242.891502,0.00019178,2]
[320029795,1711087838719,-242.891502,0.00019178,2]
[320029796,1711087838729,-226.208706,0.00019178,2]
[320029797,1711087838739,-226.208706,0.00019178,2]
[320029798,1711087838748,-226.208706,0.00019178,2]
[320029799,1711087838758,-226.208706,0.00019178,2]
[320029800,1711087838768,-226.208706,0.00019178,2]
[320029801,1711087838780,-226.208706,0.00019178,2]
[320029802,1711087838789,-226.208706,0.00019178,2]
[320029803,1711087838798,-226.208706,0.00019178,2]
[320029804,1711087838807,-226.208706,0.00019178,2]
[320029805,1711087838817,-226.208706,0.00019178,2]
[320029806,1711087838826,-151.0,0.00019178,2]
[320029807,1711087838835,-151.0,0.00019178,2]
[320029808,1711087838845,-151.0,0.00019178,2]
[320029809,1711087838854,-151.0,0.00019178,2]
[320029810,1711087838864,-184.480127,0.00019178,2]
[320029811,1711087838873,-2123.75858,0.00019178,2]
[320029812,1711087838882,-2123.75858,0.00019178,2]
[320029813,1711087838891,-2123.75858,0.00019178,2]
[320029814,1711087838901,-2123.75858,0.00019178,2]
[320029815,1711087838910,-2123.75858,0.00019178,2]
[320029816,1711087838919,-2123.75858,0.00019178,2]
[320029817,1711087838929,-2123.75858,0.00019178,2]
[320029818,1711087838938,-2123.75858,0.00019178,2]
[320029819,1711087838948,-2123.75858,0.00019178,2]
[320029820,1711087838957,-2123.75858,0.00019178,2]
[320029821,1711087838967,-325.44335,0.00019178,2]
[320029822,1711087838977,-231.97483,0.00019178,2]
[320029823,1711087838986,-325.44335,0.00019178,2]
[320029824,1711087838995,-325.44335,0.00019178,2]
[320029825,1711087839005,-325.44335,0.00019178,2]
[320029826,1711087839014,-231.97483,0.00019178,2]
[320029827,1711087839027,-325.44335,0.00019178,2]
[320029828,1711087839037,-231.97483,0.00019178,2]
[320029829,1711087839046,-231.97483,0.00019178,2]
[320029830,1711087839055,-231.97483,0.00019178,2]
[320029831,1711087839064,-325.44335,0.00019178,2]
[320029832,1711087839073,-325.44335,0.00019178,2]
[320029833,1711087839082,-231.97483,0.00019178,2]
[320029834,1711087839091,-325.44335,0.00019178,2]
[320029835,1711087839100,-231.97483,0.00019178,2]
[320029836,1711087839109,-325.44335,0.00019178,2]
[320029837,1711087839118,-231.97483,0.00019178,2]
[320029838,1711087839126,-325.44335,0.00019178,2]
[320029839,1711087839136,-231.97483,0.00019178,2]
[320029840,1711087839145,-231.97483,0.00019178,2]
[320029841,1711087839313,-151.0,0.00019178,2]
[320029842,1711087839332,-151.0,0.00019178,2]
[320029843,1711087839342,-151.0,0.00019178,2]
[320029844,1711087839351,-151.0,0.00019178,2]
[320029845,1711087839361,-151.0,0.00019178,2]
[320029846,1711087839370,-151.0,0.00019178,2]
[320029847,1711087839380,-151.0,0.00019178,2]
[320029848,1711087839393,-163.204622,0.00019178,2]
[320029849,1711087839403,-151.0,0.00019178,2]
[320029850,1711087839412,-151.0,0.00019178,2]
[320029851,1711087839422,-151.0,0.00019178,2]
[320029852,1711087839432,-151.0,0.00019178,2]
[320029853,1711087839441,-151.0,0.00019178,2]
[320029854,1711087839451,-151.0,0.00019178,2]
[320029855,1711087839462,-151.0,0.00019178,2]
[320029856,1711087839472,-151.0,0.00019178,2]
[320029857,1711087839481,-151.0,0.00019178,2]
[320029858,1711087839490,-151.0,0.00019178,2]
[320029859,1711087839500,-151.0,0.00019178,2]
[320029860,1711087839509,-151.0,0.00019178,2]
[320029861,1711087839519,-151.0,0.00019178,2]
[320029862,1711087839529,-151.0,0.00019178,2]
[320029863,1711087839538,-151.0,0.00019178,2]
[320029864,1711087839547,-161.968525,0.00019178,2]
[320029865,1711087839557,-3840.53039433,0.000192,2]
[320029866,1711087839567,-185.62,0.00019406,2]
[320029867,1711087839577,-860.06772857,0.000195,2]
[320029868,1711087839586,-1000.0,0.00019503,2]
[320029869,1711087839596,-157.23,0.00019506,2]
[320029870,1711087839607,-176.486443,0.00019726,2]
[320029871,1711087839617,-210.0,0.00019907,2]
[320029873,1711087839627,-800.0,0.00019973,2]
[320029875,1711087839637,-1332.08354968,0.0002,2]
[320029877,1711087839651,-3667.91645032,0.0002,2]
[320029879,1711087839661,-18388.81308938,0.0002,2]
[320029881,1711087839671,-155.0,0.0002,2]
[320029883,1711087839681,-513.0344331,0.0002,2]
[320029885,1711087839690,-286.74572755,0.0002,2]
[320029887,1711087839700,-155.19885628,0.0002,2]
[320029888,1711087839709,-1000.0,0.0002,2]
[320029889,1711087839718,-676.99389528,0.0002,2]
[320029890,1711087839728,-2340.09314457,0.0002,2]
[320029891,1711087839737,-151.0,0.0002,2]
[320029893,1711087839746,-233.678987,0.0002,2]
[320029895,1711087839756,-233.678987,0.0002,2]
[320029896,1711087839765,-350.345428,0.0002,2]
[320029898,1711087839776,-350.345428,0.0002,2]
[320029900,1711087839785,-209.923209,0.0002,2]
[320029902,1711087839794,-209.923209,0.0002,2]
[320029904,1711087839803,-151.0,0.0002,2]
[320029906,1711087839813,-660.226684,0.0002,2]
[320029908,1711087839823,-1130.133282,0.0002,2]
[320029910,1711087839832,-660.226684,0.0002,2]
[320029912,1711087839841,-1130.133282,0.0002,2]
[320029914,1711087839851,-1834.725148,0.0002,2]
[320029915,1711087839860,-1834.725148,0.0002,2]
[320029916,1711087839870,-244.980659,0.0002,2]
[320029917,1711087839879,-151.0,0.0002,2]
[320029918,1711087839888,-244.980659,0.0002,2]
[320029919,1711087839898,-151.0,0.0002,2]
[320029920,1711087839907,-246.16355,0.0002,2]
[320029921,1711087839916,-246.16355,0.0002,2]
[320029922,1711087839925,-200.862694,0.0002,2]
[320029923,1711087839935,-200.862694,0.0002,2]
[320029924,1711087839945,-162.352303,0.0002,2]
[320029925,1711087839954,-162.352303,0.0002,2]
[320029926,1711087839964,-151.0,0.0002,2]
[320029927,1711087839973,-1682.344151,0.0002,2]
[320029928,1711087839983,-1682.344151,0.0002,2]
[320029929,1711087839992,-2149.839595,0.0002,2]
[320029930,1711087840001,-151.0,0.0002,2]
[320029931,1711087840010,-2149.839595,0.0002,2]
[320029932,1711087840022,-151.0,0.0002,2]
[320029933,1711087840032,-246.127676,0.0002,2]
[320029934,1711087840041,-246.127676,0.0002,2]
[320029935,1711087840050,-151.0,0.0002,2]
[320029936,1711087840060,-196.574698,0.0002,2]
[320029937,1711087840069,-235.149959,0.0002,2]
[320029938,1711087840079,-235.149959,0.0002,2]
[320029939,1711087840088,-228.342339,0.0002,2]
[320029940,1711087840097,-228.342339,0.0002,2]
[320029941,1711087840106,-500.0,0.0002,2]
[320029942,1711087840115,-249.988533,0.0002,2]
[320029943,1711087840124,-983.756572,0.0002,2]
[320029944,1711087840133,-249.988533,0.0002,2]
[320029945,1711087840142,-500.0,0.0002,2]
[320029946,1711087840151,-238.667314,0.0002,2]
[320029947,1711087840160,-983.756572,0.0002,2]
[320029948,1711087840170,-238.667314,0.0002,2]
[320029949,1711087840179,-164.781035,0.0002,2]
[320029950,1711087840187,-164.781035,0.0002,2]
[320029951,1711087840197,-220.401656,0.0002,2]
[320029952,1711087840206,-220.401656,0.0002,2]
[320029953,1711087840215,-242.891502,0.0002,2]
[320029954,1711087840225,-242.891502,0.0002,2]
[320029955,1711087840234,-226.208706,0.0002,2]
[320029956,1711087840244,-226.208706,0.0002,2]
[320029957,1711087840253,-210.18434152,0.0002,2]
[320029958,1711087840266,-1913.57423848,0.0002,2]
[320029959,1711087840277,-2123.75858,0.0002,2]
[320029960,1711087840287,-325.44335,0.0002,2]
[320029961,1711087840296,-108.13268064,0.0002,2]
[320029962,1711087840308,-123.84214936,0.0002,2]
[320029963,1711087840318,-325.44335,0.0002,2]
[320029964,1711087840327,-231.97483,0.0002,2]
[320029965,1711087840335,-151.0,0.0002,2]
[320029966,1711087840345,-151.0,0.0002,2]
[320029967,1711087840354,-19.23955677,0.0002,2]
[320029968,1711087840477,-212.18396723,0.0002,2]
[320029969,1711087840487,-151.0,0.0002,2]
[320029970,1711087840497,-163.84,0.0002053,2]
[320029971,1711087840506,-176.486443,0.00020548,2]
[320029972,1711087840516,-9845.47,0.00020548,2]
[320029973,1711087840527,-500.0,0.00020548,2]
[320029974,1711087840537,-500.0,0.00020548,2]
[320029975,1711087840546,-235.643511,0.00020548,2]
[320029976,1711087840556,-235.643511,0.00020548,2]
[320029977,1711087840566,-151.0,0.00020548,2]
[320029978,1711087840575,-151.0,0.00020548,2]
[320029979,1711087840584,-151.0,0.00020548,2]
[320029980,1711087840594,-151.0,0.00020548,2]
[320029981,1711087840603,-209.278581,0.00020548,2]
[320029982,1711087840612,-209.278581,0.00020548,2]
[320029983,1711087840622,-151.0,0.00020548,2]
[320029984,1711087840632,-151.0,0.00020548,2]
[320029985,1711087840641,-151.0,0.00020548,2]
[320029986,1711087840650,-151.0,0.00020548,2]
[320029987,1711087840659,-151.490529,0.00020548,2]
[320029988,1711087840669,-151.490529,0.00020548,2]
[320029989,1711087840678,-151.0,0.00020548,2]
[320029990,1711087840687,-244.980659,0.0002079,2]
[320029991,1711087840697,-151.0,0.0002079,2]
[320029992,1711087840706,-244.980659,0.0002079,2]
[320029993,1711087840715,-192.322578,0.0002079,2]
[320029994,1711087840724,-246.16355,0.0002079,2]
[320029995,1711087840732,-246.16355,0.0002079,2]
[320029996,1711087840742,-135.69983424,0.0002079,2]
[320029997,1711087840798,-65.16285976,0.0002079,2]
[320029998,1711087840808,-200.862694,0.0002079,2]
[320029999,1711087840817,-162.352303,0.0002079,2]
[320030000,1711087840826,-162.352303,0.0002079,2]
[320030001,1711087840835,-906.72304334,0.0002079,2]
[320030002,1711087840847,-4735.791074,0.0002079,2]
[320030003,1711087840856,-3239.82,0.00020822,2]
[320030004,1711087840865,-712.01714701,0.00021,2]
[320030005,1711087840874,-325.96339509,0.00021,2]
[320030006,1711087840883,-550.0,0.00021,3]
[320030007,1711087840892,-151.0,0.00021,2]
[320030008,1711087840901,-233.678987,0.00021,2]
[320030009,1711087840910,-233.678987,0.00021,2]
[320030010,1711087840919,-350.345428,0.00021,2]
[320030011,1711087840928,-350.345428,0.00021,2]
[320030012,1711087840938,-327.348,0.00021,2]
[320030013,1711087840947,-278.0,0.00021,2]
[320030014,1711087840956,-209.923209,0.00021,2]
[320030015,1711087840965,-209.923209,0.00021,2]
[320030016,1711087840974,-151.0,0.00021,2]
[320030017,1711087840984,-1130.133282,0.00021,2]
[320030018,1711087840993,-660.226684,0.00021,2]
[320030019,1711087841002,-1130.133282,0.00021,2]
[320030020,1711087841011,-1834.725148,0.00021,2]
[320030021,1711087841024,-1834.725148,0.00021,2]
[320030022,1711087841033,-241.347512,0.00021,2]
[320030023,1711087841043,-1682.344151,0.00021,2]
[320030024,1711087841053,-1682.344151,0.00021,2]
[320030025,1711087841062,-2149.839595,0.00021,2]
[320030026,1711087841072,-151.0,0.00021,2]
[320030027,1711087841081,-2149.839595,0.00021,2]
[320030028,1711087841090,-151.0,0.00021,2]
[320030029,1711087841100,-246.127676,0.00021,2]
[320030030,1711087841109,-246.127676,0.00021,2]
[320030031,1711087841118,-151.0,0.00021,2]
[320030032,1711087841127,-235.149959,0.00021,2]
[320030033,1711087841136,-235.149959,0.00021,2]
[320030034,1711087841145,-228.342339,0.00021,2]
[320030035,1711087841154,-228.342339,0.00021,2]
[320030036,1711087841164,-500.0,0.00021,2]
[320030037,1711087841173,-249.988533,0.00021,2]
[320030038,1711087841182,-983.756572,0.00021,2]
[320030039,1711087841191,-249.988533,0.00021,2]
[320030040,1711087841200,-500.0,0.00021,2]
[320030041,1711087841209,-238.667314,0.00021,2]
[320030042,1711087841218,-983.756572,0.00021,2]
[320030043,1711087841228,-238.667314,0.00021,2]
[320030044,1711087841237,-164.781035,0.00021,2]
[320030045,1711087841247,-164.781035,0.00021,2]
[320030046,1711087841256,-220.401656,0.00021,2]
[320030047,1711087841266,-220.401656,0.00021,2]
[320030048,1711087841278,-138.43022175,0.00021,2]
[320030069,1711087842943,-104.46128025,0.00021,2]
[320030070,1711087842952,-242.891502,0.00021,2]
[320030071,1711087842961,-226.208706,0.00021,2]
[320030072,1711087842970,-162.84474305,0.00021,2]
[320030073,1711087843346,-63.36396295,0.00021,2]
[320030074,1711087843355,-744.94103729,0.00021,2]
[320030082,1711087845954,-1378.81754271,0.00021,2]
[320030083,1711087845963,-2123.75858,0.00021,2]
[320030084,1711087845973,-325.44335,0.00021,2]
[320030085,1711087845983,-231.97483,0.00021,2]
[320030086,1711087845993,-325.44335,0.00021,2]
[320030087,1711087846002,-231.97483,0.00021,2]
[320030088,1711087846012,-151.0,0.00021,2]
[320030089,1711087846022,-151.0,0.00021,2]
[320030090,1711087846031,-151.0,0.00021,2]
[320030091,1711087846041,-1099.93,0.00021096,2]
[320030092,1711087846050,-2401.55457397,0.00021096,2]
[320030250,1711087848641,-1259.95708518,0.00021096,2]
[320030252,1711087848653,-2475.20834085,0.00021096,2]
[320030254,1711087848663,-1674.17484309,0.00021096,2]
[320030255,1711087848682,-325.82515691,0.00021096,2]
[320030256,1711087848691,-151.0,0.00021096,2]
[320030257,1711087848700,-207.69,0.000211,2]
[320030258,1711087848709,-223.96,0.000211,2]
[320030259,1711087848718,-156.70525883,0.00021309,2]
[320030260,1711087848731,-43.29474117,0.00021309,2]
[320030261,1711087848741,-475.61096597,0.00021329,2]
[320030262,1711087848757,-586.1244015,0.00021329,2]
[320030269,1711087848873,-1500.02463253,0.00021329,2]
[320030271,1711087848882,-269.06,0.00021363,2]
[320030273,1711087848892,-176.486443,0.0002137,2]
[320030275,1711087848901,-2500.0,0.000215,2]
[320030277,1711087848910,-169.0,0.00021616,2]
[320030279,1711087848919,-277.0,0.00021616,2]
[320030281,1711087848929,-166.0,0.00021616,2]
[320030283,1711087848938,-1000.0,0.0002167,2]
[320030285,1711087848947,-152.0,0.000218,3]
[320030287,1711087848956,-151.0,0.000218,2]
[320030289,1711087848965,-151.0,0.000218,2]
[320030291,1711087848974,-500.0,0.000218,2]
[320030293,1711087848984,-500.0,0.000218,2]
[320030295,1711087848993,-235.643511,0.000218,2]
[320030297,1711087849002,-235.643511,0.000218,2]
[320030299,1711087849012,-151.0,0.000218,2]
[320030301,1711087849021,-151.0,0.000218,2]
[320030303,1711087849033,-151.0,0.000218,2]
[320030305,1711087849042,-178.320871,0.000218,2]
[320030307,1711087849051,-209.278581,0.000218,2]
[320030309,1711087849061,-209.278581,0.000218,2]
[320030311,1711087849072,-151.0,0.000218,2]
[320030313,1711087849081,-151.0,0.000218,2]
[320030315,1711087849090,-151.0,0.000218,2]
[320030317,1711087849100,-151.0,0.000218,2]
[320030319,1711087849109,-151.490529,0.000218,2]
[320030321,1711087849118,-151.0,0.000218,2]
[320030323,1711087849128,-151.490529,0.000218,2]
[320030325,1711087849137,-233.678987,0.000218,2]
[320030327,1711087849146,-151.0,0.000218,2]
[320030329,1711087849155,-233.678987,0.000218,2]
[320030331,1711087849165,-209.923209,0.000218,2]
[320030333,1711087849174,-209.923209,0.000218,2]
[320030335,1711087849183,-151.0,0.000218,2]
[320030337,1711087849192,-1130.133282,0.000218,2]
[320030339,1711087849202,-1834.725148,0.000218,2]
[320030341,1711087849211,-1834.725148,0.000218,2]
[320030343,1711087849220,-244.980659,0.000218,2]
[320030345,1711087849230,-151.0,0.000218,2]
[320030347,1711087849240,-244.980659,0.000218,2]
[320030349,1711087849249,-246.16355,0.000218,2]
[320030352,1711087849260,-246.16355,0.000218,2]
[320030354,1711087849269,-200.862694,0.000218,2]
[320030355,1711087849278,-200.862694,0.000218,2]
[320030357,1711087849288,-162.352303,0.000218,2]
[320030359,1711087849297,-162.352303,0.000218,2]
[320030362,1711087849306,-1682.344151,0.000218,2]
[320030364,1711087849316,-1682.344151,0.000218,2]
[320030366,1711087849325,-2149.839595,0.000218,2]
[320030368,1711087849335,-151.0,0.000218,2]
[320030370,1711087849344,-2149.839595,0.000218,2]
[320030372,1711087849354,-159.685249,0.000218,2]
[320030374,1711087849364,-246.127676,0.000218,2]
[320030376,1711087849374,-246.127676,0.000218,2]
[320030378,1711087849383,-151.0,0.000218,2]
[320030380,1711087849395,-235.149959,0.000218,2]
[320030382,1711087849405,-235.149959,0.000218,2]
[320030384,1711087849415,-228.342339,0.000218,2]
[320030386,1711087849425,-228.342339,0.000218,2]
[320030389,1711087849435,-500.0,0.000218,2]
[320030391,1711087849446,-249.988533,0.000218,2]
[320030393,1711087849456,-102.64444875,0.000218,2]
[320030402,1711087849534,-881.11212325,0.000218,2]
[320030404,1711087849545,-249.988533,0.000218,2]
[320030406,1711087849555,-500.0,0.000218,2]
[320030408,1711087849564,-238.667314,0.000218,2]
[320030410,1711087849574,-983.756572,0.000218,2]
[320030412,1711087849584,-238.667314,0.000218,2]
[320030414,1711087849594,-164.781035,0.000218,2]
[320030416,1711087849603,-164.781035,0.000218,2]
[320030418,1711087849613,-220.401656,0.000218,2]
[320030420,1711087849623,-220.401656,0.000218,2]
[320030422,1711087849632,-242.891502,0.000218,2]
[320030424,1711087849642,-242.891502,0.000218,2]
[320030426,1711087849652,-226.208706,0.000218,2]
[320030428,1711087849662,-226.208706,0.000218,2]
[320030430,1711087849671,-2123.75858,0.000218,2]
[320030432,1711087849681,-2123.75858,0.000218,2]
[320030434,1711087849690,-325.44335,0.000218,2]
[320030436,1711087849700,-231.97483,0.000218,2]
[320030439,1711087849709,-325.44335,0.000218,2]
[320030440,1711087849719,-231.97483,0.000218,2]
[320030441,1711087849729,-151.0,0.000218,2]
[320030442,1711087849739,-151.0,0.000218,2]
[320030443,1711087849749,-151.0,0.000218,2]
[320030444,1711087849759,-205.17575209,0.000218,2]
[320030445,1711087849768,-205.17575209,0.000218,2]
[320030446,1711087849779,-205.17575209,0.000218,2]
[320030447,1711087849790,-205.17575209,0.000218,2]
[320030448,1711087849800,-205.17575209,0.000218,2]
[320030449,1711087849810,-205.17575209,0.000218,2]
[320030450,1711087849820,-205.17575209,0.000218,2]
[320030451,1711087849830,-205.17575209,0.000218,2]
[320030452,1711087849841,-205.17575209,0.000218,2]
[320030453,1711087849851,-205.17575209,0.000218,2]
[320030454,1711087849861,-205.17575209,0.000218,2]
[320030455,1711087849871,-205.17575209,0.000218,2]
[320030456,1711087849881,-205.17575209,0.000218,2]
[320030457,1711087849891,-205.17575209,0.000218,2]
[320030458,1711087849901,-205.17575209,0.000218,2]
[320030459,1711087849911,-205.17575209,0.000218,2]
[320030460,1711087849921,-205.17575209,0.000218,2]
[320030461,1711087849932,-205.17575209,0.000218,2]
[320030462,1711087849943,-205.17575209,0.000218,2]
[320030463,1711087849952,-205.17575209,0.000218,2]
[320030464,1711087849962,-205.17575209,0.000218,2]
[320030465,1711087849972,-205.17575209,0.000218,2]
[320030466,1711087849982,-205.17575209,0.000218,2]
[320030467,1711087849991,-205.17575209,0.000218,2]
[320030468,1711087850001,-205.17575209,0.000218,2]
[320030469,1711087850011,-205.17575209,0.000218,2]
[320030470,1711087850021,-205.17575209,0.000218,2]
[320030471,1711087850032,-205.17575209,0.000218,2]
[320030472,1711087850042,-205.17575209,0.000218,2]
[320030473,1711087850052,-205.17575209,0.000218,2]
[320030474,1711087850062,-205.17575209,0.000218,2]
[320030475,1711087850072,-205.17575209,0.000218,2]
[320030476,1711087850082,-205.17575209,0.000218,2]
[320030477,1711087850091,-205.17575209,0.000218,2]
[320030478,1711087850102,-205.17575209,0.000218,2]
[320030479,1711087850112,-205.17575209,0.000218,2]
[320030480,1711087850122,-205.17575209,0.000218,2]
[320030481,1711087850132,-205.17575209,0.000218,2]
[320030482,1711087850142,-205.17575209,0.000218,2]
[320030483,1711087850152,-205.17575209,0.000218,2]
[320030484,1711087850163,-205.17575209,0.000218,2]
[320030485,1711087850173,-205.17575209,0.000218,2]
[320030486,1711087850183,-205.17575209,0.000218,2]
[320030487,1711087850193,-205.17575209,0.000218,2]
[320030488,1711087850204,-205.17575209,0.000218,2]
[320030489,1711087850214,-205.17575209,0.000218,2]
[320030490,1711087850224,-205.17575209,0.000218,2]
[320030491,1711087850235,-205.17575209,0.000218,2]
[320030492,1711087850245,-205.17575209,0.000218,2]
[320030493,1711087850257,-205.17575209,0.000218,2]
[320030494,1711087850267,-205.17575209,0.000218,2]
[320030495,1711087850279,-205.17575209,0.000218,2]
[320030496,1711087850288,-205.17575209,0.000218,2]
[320030497,1711087850298,-205.17575209,0.000218,2]
[320030498,1711087850308,-205.17575209,0.000218,2]
[320030499,1711087850318,-205.17575209,0.000218,2]
[320030500,1711087850328,-205.17575209,0.000218,2]
[320030501,1711087850338,-205.17575209,0.000218,2]
[320030502,1711087850348,-205.17575209,0.000218,2]
[320030503,1711087850358,-205.17575209,0.000218,2]
[320030504,1711087850368,-205.17575209,0.000218,2]
[320030505,1711087850378,-205.17575209,0.000218,2]
[320030506,1711087850388,-205.17575209,0.000218,2]